Workbook

Sheet 表10-本會人事甄審考績委員會性別比例
A1: 本會人事甄審考績委員會性別比例
A2: 表10
A3: 年別 | B3: 總計 | D3: 男 | F3: 女
B4: 人數 | C4: 比例 | D4: 人數 | E4: 比例 | F4: 人數 | G4: 比例
A5: 99年 | B5: =SUM(D5+F5) -> 19 | C5: =E5+G5 -> 100% | D5: 12 | E5: =SUM(D5/B5) -> 63.2% | F5: 7 | G5: =SUM(F5/B5) -> 36.8%
A6: 100年 | B6: =SUM(D6+F6) -> 19 | C6: =E6+G6 -> 100% | D6: 14 | E6: =SUM(D6/B6) -> 73.7% | F6: 5 | G6: =SUM(F6/B6) -> 26.3%
A7: 101年 | B7: 19 | C7: 100% | D7: 13 | E7: 68.4% | F7: 6 | G7: 31.6%
A8: 102年 | B8: 19 | C8: 100% | D8: 12 | E8: 63.2% | F8: 7 | G8: 36.8%
A9: 103年 | B9: 19 | C9: 100% | D9: 12 | E9: 63.2% | F9: 7 | G9: 36.8%
A10: 104年 | B10: 19 | C10: 100% | D10: 13 | E10: =SUM(D10/B10) -> 68.4% | F10: 6 | G10: =SUM(F10/B10) -> 31.6%
A11: 105年 | B11: 19 | C11: 100% | D11: 14 | E11: =SUM(D11/B11) -> 73.7% | F11: 5 | G11: =SUM(F11/B11) -> 26.3%
A12: 106年 | B12: 19 | C12: 100% | D12: 12 | E12: 63.2% | F12: 7 | G12: 36.8%
A13: 107年 | B13: =SUM(D13+F13) -> 19 | C13: =E13+G13 -> 100% | D13: 11 | E13: =SUM(D13/B13) -> 57.9% | F13: 8 | G13: =SUM(F13/B13) -> 42.1%
A14: 108年 | B14: =SUM(D14+F14) -> 19 | C14: 100% | D14: 11 | E14: 57.9% | F14: 8 | G14: 42.1%
A15: 109年 | B15: =SUM(D15+F15) -> 19 | C15: 100% | D15: 12 | E15: 63.2% | F15: 7 | G15: 36.8%
A16: 110年 | B16: =SUM(D16+F16) -> 19 | C16: 100% | D16: 11 | E16: 57.9% | F16: 8 | G16: 42.1%
A17: 111年 | B17: 19 | C17: 100% | D17: 10 | E17: 52.6% | F17: 9 | G17: 47.4%
A18: 112年 | B18: 19 | C18: 100% | D18: 10 | E18: 52.6% | F18: 9 | G18: 47.4%
A19: 113年 | B19: 19 | C19: =E19+G19 -> 100% | D19: 10 | E19: =SUM(D19/B19) -> 52.6% | F19: 9 | G19: =SUM(F19/B19) -> 47.4%
A20: 資料來源：人事室
A21: 備註： 1.性別資料使用：本會人事甄審考績委員會委員比例符合任一性別比例不低於1/3之規定，又本會因職員人數男女比例約7:3，為符合性別比例規定，在票選委員候選人部分均請各單位優先推薦女性同仁。113年改選後，男性10人，女性9人，顯示本會在促進決策參與的性別平等部分，已有顯著成長。 2.應用深化：上開統計資料可做為本會規劃委員組成人數及比例，及提供首長勾選指定委員之參據。 3.未進行國際性別統計比較原因說明：茲考量其他國家政府組織型態、功能任務迥異，爰未能就與本會業務性質與角色功能完全相同之國外政府機關進行國際比較。
